[Event "Coimbra Queima Fitas Open 2024"]
[Site "Coimbra"]
[Date "2024.04.28"]
[Round "7.12"]
[White "Pintor, Simao Maciel Abranch"]
[Black "Bastiao, Tomas De Oliveira"]
[Result "1/2-1/2"]
[ECO "B38"]
[WhiteElo "2039"]
[BlackElo "1875"]
[Annotator "RC"]
[PlyCount "120"]
[EventDate "2024.04.23"]
[EventType "swiss"]
[EventCountry "POR"]
[SourceTitle "playchess.com"]
[Source "ChessBase"]
[SourceQuality "1"]
[TimeControl "5400+30"]

1. e4 {[%emt 0:00:03]} c5 {[%emt 0:00:56]} 2. Nf3 {[%emt 0:00:05]} Nc6 {[%emt 0:00:29]} 3. d4 {[%emt 0:00:06]} cxd4 {[%emt 0:00:03]} 4. Nxd4 {[%emt 0:00:04]} g6 {[%emt 0:00:16]} 5. c4 {[%emt 0:00:05]} Bg7 {[%emt 0:00:18]} 6. Be3 {[%emt 0:00:05]} Qb6 {[%emt 0:00:06]} 7. Nb3 {[%emt 0:00:03]} Qd8 {[%emt 0:00:04]} 8. Qd2 {[%emt 0:00:09]} Nf6 {[%emt 0:00:05]} 9. f3 {[%emt 0:00:04]} d6 {[%emt 0:00:24]} 10. Nc3 {[%emt 0:00:09]} O-O {[%emt 0:00:11]} 11. Be2 {[%emt 0:00:17]} a5 {[%emt 0:00:04]} 12. Na4 {[%emt 0:00:21]} Be6 {[%emt 0:00:37]} 13. Nd4 {[%emt 0:00:16]} Nxd4 {[%emt 0:01:56]} 14. Bxd4 {[%emt 0:00:47]} Nd7 {[%emt 0:00:11]} 15. b3 {[%emt 0:00:20]} Qc7 {[%emt 0:05:05]} 16. h4 {[%emt 0:03:16]} Nc5 {[%emt 0:03:18]} 17. Nc3 {[%emt 0:03:41]} Bxd4 {[%emt 0:17:17]} 18. Qxd4 {[%emt 0:00:03]} Nd7 {[%emt 0:00:06]} 19. h5 {[%emt 0:03:45]} Qc5 {[%emt 0:01:18]} 20. Qd2 {[%emt 0:00:10]} Nf6 {[%emt 0:26:22]} 21. f4 {[%emt 0:06:02]} a4 {[%emt 0:08:26]} 22. Rb1 {[%emt 0:14:32]} axb3 {[%emt 0:13:59]} 23. axb3 {[%emt 0:00:02]} Ng4 {[%emt 0:06:54]} 24. Bxg4 {[%emt 0:16:44]} Bxg4 {[%emt 0:00:01]} 25. Nd5 {[%emt 0:00:19]} Rfe8 {[%emt 0:01:23]} 26. hxg6 {[%emt 0:04:56]} fxg6 {[%emt 0:00:16]} 27. f5 {[%emt 0:02:56]} Qa5 {[%emt 0:00:41]} 28. f6 {[%emt 0:11:20]} Qxd2+ {[%emt 0:04:21]} 29. Kxd2 {[%emt 0:00:12]} Be6 {[%emt 0:04:54]} 30. Nc7 {[%emt 0:04:34]} exf6 {[%emt 0:00:08]} 31. Nxa8 Rxa8 {[%emt 0:00:04]} 32. Ra1 {[%emt 0:00:36]} Rb8 {[%emt 0:01:11]} 33. Ra7 {[%emt 0:00:26]} Bd7 {[%emt 0:01:22]} 34. Rha1 {[%emt 0:00:51]} Bc6 {[%emt 0:00:03]} 35. Ra8 {[%emt 0:00:09]} Rxa8 {[%emt 0:00:02]} 36. Rxa8+ {[%emt 0:00:05]} Kf7 {[%emt 0:00:22]} 37. Ke3 {[%emt 0:00:11]} f5 {[%emt 0:01:01]} 38. exf5 {[%emt 0:00:28]} Bxg2 {[%emt 0:00:23]} 39. Rh8 {[%emt 0:04:02]} gxf5 {[%emt 0:00:51]} 40. Rxh7+ {[%emt 0:00:05]} Ke6 {[%emt 0:00:19]} 41. Rg7 {[%emt 0:01:55]} Bc6 {[%emt 0:00:33]} 42. Kd4 {[%emt 0:04:07]} Kf6 {[%emt 0:03:07]} 43. Rh7 {[%emt 0:01:01]} Be4 {[%emt 0:01:51]} 44. b4 {[%emt 0:01:04]} Bc6 {[%emt 0:00:35]} 45. Rh8 {[%emt 0:04:43]} Ke6 {[%emt 0:00:16]} 46. b5 {[%emt 0:00:26]} Bf3 {[%emt 0:00:50]} 47. Re8+ {[%emt 0:02:06]} Kf6 {[%emt 0:00:20]} 48. Kc3 {[%emt 0:02:39]} Bg2 {[%emt 0:00:37]} 49. Kb4 {[%emt 0:01:31]} Be4 {[%emt 0:00:25]} 50. Ka5 {[%emt 0:00:58]} Bd3 {[%emt 0:00:28]} 51. Rc8 {[%emt 0:01:51]} Be4 {[%emt 0:00:10]} 52. Kb6 {[%emt 0:00:33]} f4 {[%emt 0:00:30]} 53. Rd8 {[%emt 0:02:15]} Ke5 {[%emt 0:00:26]} 54. Kc7 {[%emt 0:01:13]} f3 {[%emt 0:00:29]} 55. Rxd6 {[%emt 0:06:35]} f2 {[%emt 0:00:10]} 56. Rd1 {[%emt 0:00:05]} Bg2 {[%emt 0:00:08]} 57. c5 {[%emt 0:01:40]} f1=Q {[%emt 0:00:03]} 58. Rxf1 {[%emt 0:00:03]} Bxf1 {[%emt 0:00:04]} 59. c6 {[%emt 0:01:21]} bxc6 {[%emt 0:00:11]} 60. b6 {[%emt 0:00:31]} Ba6 {[%emt 0:00:04]} 1/2-1/2

[Event "Coimbra Queima Fitas Open 2024"]
[Site "Coimbra"]
[Date "2024.04.28"]
[Round "7.13"]
[White "Alegre, Fabio Da Conceicao B"]
[Black "Almeida, Joao Pedro Dias"]
[Result "1/2-1/2"]
[ECO "A28"]
[WhiteElo "1942"]
[BlackElo "2006"]
[Annotator "NA RC"]
[PlyCount "116"]
[EventDate "2024.04.23"]
[EventType "swiss"]
[EventCountry "POR"]
[SourceTitle "playchess.com"]
[Source "ChessBase"]
[SourceQuality "1"]
[TimeControl "5400+30"]

1. c4 {[%emt 0:00:02]} e5 {[%emt 0:00:17]} 2. Nc3 {[%emt 0:00:07]} Nf6 {[%emt 0:00:15]} 3. Nf3 {[%emt 0:00:20]} Nc6 {[%emt 0:00:05]} 4. e4 {[%emt 0:00:06]} Bb4 {[%emt 0:01:47]} 5. d3 {[%emt 0:00:03]} d6 {[%emt 0:00:57]} 6. a3 {[%emt 0:00:15]} Ba5 {[%emt 0:01:29]} 7. Bg5 {[%emt 0:02:08]} h6 {[%emt 0:00:56]} 8. Bd2 {[%emt 0:03:59]} Bb6 {[%emt 0:01:35]} 9. Na4 {[%emt 0:01:18]} Bd4 {[%emt 0:01:32]} 10. Be2 {[%emt 0:00:34]} Nh7 {[%emt 0:05:31]} 11. Nxd4 {[%emt 0:00:39]} Nxd4 {[%emt 0:00:11]} 12. f4 {[%emt 0:00:49]} Qh4+ {[%emt 0:03:24]} 13. g3 {[%emt 0:01:27]} Qh3 {[%emt 0:00:18]} 14. Bf1 {[%emt 0:00:29]} Qg4 {[%emt 0:04:09]} 15. Be2 {[%emt 0:00:02]} Nxe2 {[%emt 0:03:03]} 16. Qxe2 {[%emt 0:00:04]} h5 {[%emt 0:00:14]} 17. f5 {[%emt 0:00:34]} Nf8 {[%emt 0:01:35]} 18. Qxg4 {[%emt 0:00:16]} hxg4 {[%emt 0:00:04]} 19. O-O {[%emt 0:00:18]} f6 {[%emt 0:01:58]} 20. Nc3 {[%emt 0:00:06]} Nd7 {[%emt 0:01:52]} 21. Nd5 {[%emt 0:00:51]} Kd8 {[%emt 0:00:07]} 22. b4 {[%emt 0:00:19]} b5 {[%emt 0:03:28]} 23. cxb5 {[%emt 0:01:11]} Nb6 {[%emt 0:00:18]} 24. Ne3 {[%emt 0:01:52]} Na4 {[%emt 0:00:05]} 25. Nxg4 {[%emt 0:01:32]} Bd7 {[%emt 0:00:03]} 26. Kf2 {[%emt 0:01:02]} Bxb5 {[%emt 0:00:09]} 27. Ke2 {[%emt 0:03:15]} Rh3 {[%emt 0:00:32]} 28. Nf2 {[%emt 0:01:02]} Rxh2 {[%emt 0:00:40]} 29. Rh1 {[%emt 0:00:07]} Rxh1 {[%emt 0:00:17]} 30. Rxh1 {[%emt 0:00:02]} Ke7 {[%emt 0:00:07]} 31. g4 {[%emt 0:00:46]} Rf8 {[%emt 0:00:53]} 32. g5 {[%emt 0:00:10]} Rf7 {[%emt 0:02:23]} 33. Rh7 {[%emt 0:01:42]} fxg5 {[%emt 0:00:50]} 34. Bxg5+ {[%emt 0:00:19]} Ke8 {[%emt 0:00:05]} 35. Kd2 {[%emt 0:01:35]} Nb6 {[%emt 0:08:51]} 36. Nh3 {[%emt 0:04:01]} Nd7 {[%emt 0:03:18]} 37. Be3 {[%emt 0:00:20]} Nf8 {[%emt 0:00:41]} 38. Rh8 {[%emt 0:00:23]} a6 {[%emt 0:02:04]} 39. Ng5 {[%emt 0:00:17]} Rf6 {[%emt 0:00:20]} 40. Ne6 {[%emt 0:00:43]} Rf7 {[%emt 0:00:26]} 41. Rg8 {[%emt 0:01:03]} Ba4 {[%emt 0:02:40]} 42. Kc3 {[%emt 0:02:26]} Bd1 {[%emt 0:00:36]} 43. Kb2 {[%emt 0:03:04]} Rf6 {[%emt 0:03:51]} 44. Bg5 {[%emt 0:01:15]} Rf7 {[%emt 0:00:03]} 45. Bh4 {[%emt 0:00:47]} Ba4 {[%emt 0:01:52]} 46. Bg5 {[%emt 0:00:47]} Bd1 {[%emt 0:00:08]} 47. Kc3 {[%emt 0:05:26]} Ba4 {[%emt 0:00:22]} 48. Nxf8 {[%emt 0:15:36]} Rxf8 {[%emt 0:00:08]} 49. Rxg7 {[%emt 0:00:04]} Rf7 {[%emt 0:00:20]} 50. Rxf7 {[%emt 0:02:23]} Kxf7 {[%emt 0:00:04]} 51. d4 {[%emt 0:00:09]} exd4+ {[%emt 0:01:13]} 52. Kxd4 {[%emt 0:00:01]} Bc2 {[%emt 0:01:05]} 53. Bd8 {[%emt 0:00:45]} c6 {[%emt 0:00:19]} 54. f6 {[%emt 0:02:57]} Ke6 {[%emt 0:00:35]} 55. Bc7 {[%emt 0:01:04]} c5+ {[%emt 0:01:01]} 56. bxc5 {[%emt 0:00:33]} dxc5+ {[%emt 0:00:05]} 57. Kxc5 {[%emt 0:00:09]} Bxe4 {[%emt 0:00:04]} 58. Bd8 {[%emt 0:00:12]} Bd3 {[%emt 0:00:04]} 1/2-1/2

[Event "Coimbra Queima Fitas Open 2024"]
[Site "Coimbra"]
[Date "2024.04.28"]
[Round "7.14"]
[White "Serarols Mabras, Bernat"]
[Black "Ryabukhina, Veronika"]
[Result "1-0"]
[ECO "E04"]
[WhiteElo "2361"]
[BlackElo "1738"]
[Annotator "TA"]
[PlyCount "119"]
[EventDate "2024.04.23"]
[EventType "swiss"]
[EventCountry "POR"]
[SourceTitle "playchess.com"]
[Source "ChessBase"]
[SourceQuality "1"]
[TimeControl "5400+30"]

{[%evp 17,119,21,22,10,28,0,0,0,16,-186,0,0,45,26,38,41,33,25,35,22,13,0,20,-22,33,27,71,0,0,0,0,0,147,141,174,168,185,188,204,147,160,139,196,202,147,149,221,228,243,238,329,257,257,257,259,259,251,207,209,216,207,197,473,260,234,249,308,306,268,191,362,347,412,406,568,524,518,483,633,650,647,668,954,934,29968,29969,29985,29986,29986,29987,29988,29989,29994,29990,29993,29991,29994,29994,29994,29995,29996,29997,29997,29996]} 1. d4 {[%emt 0:09:55]} d5 {[%emt 0:00:08]} 2. c4 {[%emt 0:00:03]} e6 {[%emt 0:00:05]} 3. Nf3 {[%emt 0:00:04]} Nf6 {[%emt 0:00:09]} 4. g3 {[%emt 0:00:01]} dxc4 {[%emt 0:00:11]} 5. Bg2 {[%emt 0:00:02]} c5 6. O-O {[%emt 0:00:35]} Nc6 {[%emt 0:00:27]} 7. Qa4 {[%emt 0:00:04]} Bd7 {[%emt 0:00:51]} 8. Qxc4 {[%emt 0:00:02]} b5 {[%emt 0:18:09]} 9. Qd3 {[%emt 0:00:02]} c4 {[%emt 0:00:42]} 10. Qc2 {[%emt 0:00:01]} Rc8 {[%emt 0:00:49]} 11. e4 {[%emt 0:06:16]} Be7 {[%emt 0:02:18]} 12. Rd1 {[%emt 0:02:24] The position is equal.} O-O {[%emt 0:06:36]} 13. Ne5 $2 {[%emt 0:08:40]} (13. Qe2 $11 {and White has nothing to worry.}) 13... Qc7 $2 {[%emt 0:08:21]} (13... Nxe5 $19 14. dxe5 Ng4) 14. Bf4 $11 {[%emt 0:07:10][%cal Oe5g6]} Qb6 {[%emt 0:02:56]} 15. Nxc6 {[%emt 0:09:46]} Bxc6 {[%emt 0:02:26]} 16. d5 {[%emt 0:00:11]} exd5 {[%emt 0:00:30]} 17. exd5 {[%emt 0:00:03][%cal Be4d5,Bd5d6][%mdl 32]} Bd7 {[%emt 0:04:07]} 18. d6 {[%emt 0:01:20]} Bd8 {[%emt 0:00:05]} 19. Nd2 {[%emt 0:07:25]} h6 {[%emt 0:02:45]} 20. a4 {[%emt 0:09:48]} a6 {[%emt 0:13:49]} (20... Re8 $11) 21. axb5 {[%emt 0:04:39]} axb5 {[%emt 0:01:28]} 22. Be3 {[%emt 0:02:37]} ({White should play} 22. Ne4 $16 {Be3 would now be deadly.} b4 23. Nxf6+ Bxf6 24. Be3) 22... Qxd6 {[%emt 0:04:42]} 23. Ne4 $36 {[%emt 0:00:48][%mdl 2048] Black is under pressure.} Qe6 {[%emt 0:03:56]} 24. Nd6 {[%emt 0:14:05]} Bc6 {[%emt 0:08:44]} 25. Nxc8 $16 {[%emt 0:00:23]} Qxc8 {[%emt 0:00:55]} 26. Bxc6 {[%emt 0:01:39]} Qxc6 {[%emt 0:00:08]} 27. Qf5 {[%emt 0:01:00]} Be7 {[%emt 0:00:40]} 28. Ra7 {[%emt 0:00:48]} Bb4 {[%emt 0:00:37]} 29. Qe5 {[%emt 0:03:04] White has more active pieces.} Re8 {[%emt 0:02:23] [#]} (29... Qf3 $16 {is a better defense.} 30. Rf1 Qc6 (30... Ng4 31. Qf4 $18)) 30. Qc7 $1 $18 {[%emt 0:01:04]} Qe6 {[%emt 0:00:22]} 31. Rd8 {[%emt 0:00:30] And now Rb7 would win.} Rxd8 {[%emt 0:02:16]} (31... Nd5 $16 {was worth a try.} 32. Rxe8+ Qxe8) 32. Qxd8+ {[%emt 0:00:04]} Kh7 {[%emt 0:00:17]} 33. Qb6 {[%emt 0:02:09]} Qe5 {[%emt 0:07:49]} 34. Qd4 {[%emt 0:00:33]} Qh5 {[%emt 0:00:40]} 35. h4 {[%emt 0:04:03]} Kg6 {[%emt 0:01:34]} 36. Rb7 {[%emt 0:00:39]} Qf5 {[%emt 0:01:47]} 37. Qf4 {[%emt 0:01:15] [#] Qxf5+ is the strong threat.} Qd5 {[%emt 0:00:34]} 38. Rb6 {[%emt 0:00:29]} Kh7 {[%emt 0:01:32]} 39. Bd4 {[%emt 0:02:02]} Ne4 {[%emt 0:00:47]} (39... Nd7) 40. Qe5 {[%emt 0:00:50]} (40. Bxg7 $142 Bd2 41. Qe5 (41. Rxh6+ $2 {perishes.} Kxg7 $19) 41... Qxe5 42. Bxe5) 40... Qxe5 {[%emt 0:00:15]} 41. Bxe5 {[%emt 0:00:02]} Nxf2 {[%emt 0:00:51]} 42. Rxb5 {[%emt 0:00:07][%mdl 4096] Endgame. KRB-KBN} (42. Kxf2 Bc5+ 43. Kf3 Bxb6 $19) 42... Nd3 {[%emt 0:00:10]} 43. Bc3 {[%emt 0:00:38]} Bd6 {[%emt 0:00:39]} (43... Bxc3 44. bxc3 Nc1) 44. Kg2 {[%emt 0:00:15]} Bc5 {[%emt 0:02:15]} 45. Kf3 {[%emt 0:00:53]} Bf2 {[%emt 0:01:22]} 46. Rb7 {[%emt 0:02:00]} Kg8 {[%emt 0:00:49]} 47. Re7 {[%emt 0:00:33]} f6 {[%emt 0:00:29]} 48. Re4 {[%emt 0:00:22]} Kf7 {[%emt 0:00:31]} 49. Rxc4 {[%emt 0:00:17]} Be1 {[%emt 0:00:12]} 50. Rc7+ {[%emt 0:00:15]} Kg6 {[%emt 0:00:07]} 51. Bxe1 {[%emt 0:00:16] White mates.} Nxe1+ {[%emt 0:00:09] KR-KN} 52. Ke2 {[%emt 0:00:06]} Ng2 {[%emt 0:00:04]} 53. Kf2 {[%emt 0:00:05]} f5 {[%emt 0:00:10][%cal Bf6f5,Bf5f4][%mdl 32]} 54. Kxg2 {[%emt 0:00:06] KR-K3P} Kh5 {[%emt 0:00:09]} 55. b4 {[%emt 0:00:40]} f4 {[%emt 0:00:08]} 56. b5 {[%emt 0:00:06]} fxg3 {[%emt 0:00:07]} 57. b6 {[%emt 0:00:06]} g5 {[%emt 0:00:06]} 58. b7 {[%emt 0:00:12]} Kxh4 {[%emt 0:00:05]} 59. b8=Q {[%emt 0:00:13]} Kg4 {[%emt 0:00:08]} 60. Rc4+ {[%emt 0:00:07] Weighted Error Value: White=0.22 (precise) /Black=0.46.  Loses game:     	White=1     	---        Missed win:     	---       	Black=1      Mistake:       	White=2     	Black=6      Inaccurate:     	White=2     	Black=5      OK:         	White=11    	Black=13     Best:        	White=6     	Black=3      Strong:       	White=1     	---} 1-0

[Event "Coimbra Queima Fitas Open 2024"]
[Site "Coimbra"]
[Date "2024.04.28"]
[Round "7.15"]
[White "Iglesias Ferreira, Andres Agustin"]
[Black "Sa, Nuno Baltazar Fogaca"]
[Result "1-0"]
[ECO "C65"]
[WhiteElo "2261"]
[BlackElo "1880"]
[Annotator "TA"]
[PlyCount "45"]
[EventDate "2024.04.23"]
[EventType "swiss"]
[EventCountry "POR"]
[SourceTitle "playchess.com"]
[Source "ChessBase"]
[SourceQuality "1"]
[TimeControl "5400+30"]

{[%evp 19,45,42,50,48,126,37,73,58,93,80,87,109,97,97,139,125,220,223,416,377,438,454,452,432,425,444,493,477]} 1. e4 {[%emt 0:00:01]} e5 {[%emt 0:01:03]} 2. Nf3 {[%emt 0:00:08]} Nc6 {[%emt 0:00:11]} 3. Bb5 Nf6 {[%emt 0:00:19]} 4. d3 {[%emt 0:00:40]} d6 {[%emt 0:00:11]} 5. c3 {[%emt 0:01:23]} Be7 {[%emt 0:01:46]} 6. O-O {[%emt 0:00:13]} O-O {[%emt 0:00:14]} 7. Re1 {[%emt 0:00:15]} Bg4 {[%emt 0:07:02]} 8. Nbd2 {[%emt 0:00:47]} a6 {[%emt 0:01:34]} 9. Ba4 {[%emt 0:02:01]} b5 {[%emt 0:00:40]} 10. Bc2 {[%emt 0:00:09]} d5 {[%emt 0:22:49]} 11. h3 {[%emt 0:00:30]} dxe4 {[%emt 0:00:30]} (11... Bh5 $14) 12. dxe4 {[%emt 0:00:30]} (12. hxg4 $16 exf3 13. g5 (13. Qxf3 Qd7 $16) (13. Nxf3 Nxg4 14. d4 exd4 $14) (13. gxf3 Qd7 $11)) 12... Bh5 {[%emt 0:00:30]} 13. Qe2 {[%emt 0:00:30] White is better.} Bc5 {[%emt 0:12:12]} 14. Nf1 {[%emt 0:08:43][%cal Bd2f1,Bf1g3,Bg3f5][%mdl 32]} Bxf3 {[%emt 0:20:11]} 15. Qxf3 {[%emt 0:00:25]} Ne7 {[%emt 0:00:30]} 16. Ng3 {[%emt 0:01:46]} c6 {[%emt 0:00:47]} 17. Bg5 {[%emt 0:00:18]} Ng6 {[%emt 0:10:19]} (17... Ne8 $16 {is a better defense.} 18. b4 Bd6) 18. Rad1 {[%emt 0:01:28]} Qb6 {[%emt 0:00:39] [#]} (18... Qc7 {was called for.} 19. Bxf6 gxf6 20. Qxf6 Be7) 19. Nf5 $18 Nh5 20. b4 {[%cal Ob4c5] White is clearly winning.} ({Don't do} 20. Qxh5 Bxf2+ 21. Kh2 Bxe1 22. Rxe1 c5 $18) 20... Bxf2+ 21. Qxf2 Qxf2+ 22. Kxf2 Nhf4 23. Bxf4 {Weighted Error Value: White=0.18 (very precise) /Black=0.52.  Mistake:       	White=1     	Black=3      Inaccurate:     	---       	Black=3      OK:         	White=3     	Black=1} 1-0